fUST/lending_fUST_20251204
["ID","MTS","AMOUNT","RATE_DAILY","PERIOD"]
[396226724,1764840737260,-10000.01,0.00011806,2]
[396226725,1764840737418,-10000.01,0.00011806,2]
[396226726,1764840737577,-1538.99828753,0.00011806,2]
[396226727,1764840737608,-151.0,0.00011918,2]
[396226728,1764840737638,-151.0,0.00011918,2]
[396226729,1764840737669,-546.64517702,0.00011924,2]
[396226730,1764841009372,3090.46,0.00018,30]
[396226731,1764841103322,300.0,0.00018,30]
[396226732,1764841166531,350.0,0.00018,30]
[396226733,1764841213210,-300.0,0.00011823,2]
[396226734,1764841213239,-300.0,0.00011823,2]
[396226735,1764841213267,-1200.0,0.00011823,2]
[396226736,1764841213298,-150.0,0.00011823,2]
[396226737,1764841213335,-347.76912958,0.00011824,2]
[396226738,1764841213368,-443.58983765,0.00011824,2]
[396226739,1764841213402,-500.0,0.00011824,2]
[396226740,1764841213443,-403.94175691,0.00011824,2]
[396226741,1764841213481,-500.0,0.00011824,2]
[396226742,1764841213516,-500.0,0.00011824,2]
[396226743,1764841213547,-179.18253447,0.00011824,2]
[396226744,1764841213591,-160.18288547,0.00011824,2]
[396226745,1764841213892,-500.0,0.00011824,2]
[396226746,1764841213924,-500.0,0.00011824,2]
[396226747,1764841213960,-586.97195729,0.00011824,2]
[396226748,1764841213994,-500.0,0.00011824,2]
[396226749,1764841214027,-500.0,0.00011824,2]
[396226750,1764841214058,-282.39358099,0.00011824,2]
[396226753,1764841253547,350.0,0.00018,30]
[396226754,1764841322214,500.0,0.00018,30]
[396226755,1764841335596,500.0,0.00018,30]
[396226756,1764841349890,500.0,0.00018,30]
[396226757,1764841376488,500.0,0.00018,30]
[396226758,1764841389382,500.0,0.00018,30]
[396226759,1764841413354,10000.0,0.00018,30]
[396226760,1764841461377,483.74,0.00018,30]
[396226761,1764841679467,-598.6766521,0.00011294,2]
[396226762,1764841679496,-150.0,0.00011441,2]
[396226763,1764841679523,-169.514,0.00011588,2]
[396226764,1764841679558,-300.0,0.00011817,2]
[396226765,1764841679588,-500.0,0.00011818,2]
[396226766,1764841679617,-500.0,0.00011818,2]
[396226767,1764841679646,-500.0,0.00011818,2]
[396226768,1764841679675,-500.0,0.00011818,2]
[396226769,1764841679704,-500.0,0.00011818,2]
[396226770,1764841679733,-500.0,0.00011818,2]
[396226771,1764841679761,-500.0,0.00011818,2]
[396226772,1764841679791,-63.6286958,0.00011818,2]
[396226773,1764841679933,-436.3713042,0.00011818,2]
[396226774,1764841679962,-500.0,0.00011818,2]
[396226775,1764841679990,-606.66215065,0.00011818,2]
[396226776,1764841680018,-500.0,0.00011818,2]
[396226777,1764841680047,-500.0,0.00011818,2]
[396226778,1764841683262,300.0,0.00011824,2]
[396226779,1764841693415,500.0,0.00011824,2]
[396226780,1764841693572,500.0,0.00011824,2]
[396226787,1764841832124,-228.3826972,0.00011156,2]
[396226788,1764841832135,-150.0,0.0001149,2]
[396226789,1764841832145,-500.0,0.00011824,2]
[396226790,1764841832154,-178.09932903,0.00011824,2]
[396226791,1764841832164,-35.1070963,0.00011825,2]
[396226794,1764841832179,-3874.0815523,0.00011825,2]
[396226800,1764841832235,-1038.83719804,0.00011825,2]
[396226801,1764841838420,-500.0,0.00011825,2]
[396226802,1764841838432,-272.81267215,0.00011825,2]
[396226820,1764841840360,-2026.10387188,0.00011825,2]
[396226826,1764841840414,-4687.58247045,0.00011825,2]
[396227031,1764841846356,-24187.50000056,0.00011825,2]
[396227032,1764841846407,-1185.82761287,0.00011825,2]
[396227033,1764841846462,-7199.99999992,0.00011825,2]
[396227034,1764842153541,-169.216,0.00011588,2]
[396227035,1764842153592,-150.0,0.00011656,2]
[396227036,1764842153640,-300.0,0.00011723,2]
[396227037,1764842153690,-300.0,0.00011723,2]
[396227038,1764842153734,-1200.0,0.00011723,2]
[396227039,1764842153774,-159.98852727,0.00011724,2]
[396227040,1764842153825,-539.44860142,0.00011724,2]
[396227041,1764842153868,-500.0,0.00011724,2]
[396227042,1764842153925,-253.59928678,0.00011724,2]
[396227043,1764842153969,-500.0,0.00011724,2]
[396227044,1764842154013,-217.3,0.00011724,2]
[396227045,1764842161739,500.0,0.00011724,2]
[396227046,1764842161785,500.0,0.00011724,2]
[396227047,1764842161839,384.61432576,0.00011724,2]
[396227048,1764842167937,36.2908433,0.00011725,2]
[396227049,1764842167962,315.4006912,0.00011725,2]
[396227052,1764842633252,-506.7877519,0.00011417,2]
[396227053,1764842633281,-912.21795342,0.00011417,2]
[396227054,1764842633308,-169.217,0.0001149,2]
[396227055,1764842633336,-500.0,0.00011711,2]
[396227056,1764842633363,-500.0,0.00011711,2]
[396227057,1764842633391,-500.0,0.00011711,2]
[396227058,1764842633419,-500.0,0.00011711,2]
[396227059,1764842633447,-500.0,0.00011711,2]
[396227060,1764842633475,-500.0,0.00011711,2]
[396227061,1764842633503,-323.56458936,0.00011711,2]
[396227062,1764842633663,-176.43541064,0.00011711,2]
[396227063,1764842633692,-500.0,0.00011711,2]
[396227064,1764842633721,-500.0,0.00011711,2]
[396227065,1764842633749,-500.0,0.00011711,2]
[396227066,1764842633777,-500.0,0.00011711,2]
[396227067,1764842633807,-495.53678987,0.00011711,2]
[396227068,1764842633837,-1448.1304279,0.00011716,2]
[396227069,1764842633866,-150.0,0.00011717,2]
[396227070,1764842633895,-500.0,0.00011724,2]
[396227071,1764842633976,-500.0,0.00011724,2]
[396227072,1764842634006,-500.0,0.00011724,2]
[396227073,1764842634035,-500.0,0.00011724,2]
[396227074,1764842634064,-500.0,0.00011724,2]
[396227075,1764842634097,-500.0,0.00011724,2]
[396227076,1764842634127,-500.0,0.00011724,2]
[396227077,1764842634155,-500.0,0.00011724,2]
[396227078,1764842634186,-500.0,0.00011724,2]
[396227079,1764842634215,-500.0,0.00011724,2]
[396227080,1764842634243,-500.0,0.00011724,2]
[396227081,1764842634323,-500.0,0.00011724,2]
[396227082,1764842634350,-500.0,0.00011724,2]
[396227083,1764842634377,-500.0,0.00011724,2]
[396227084,1764842634404,-500.0,0.00011724,2]
[396227085,1764842634431,-500.0,0.00011724,2]
[396227086,1764842634458,-500.0,0.00011724,2]
[396227087,1764842634488,-500.0,0.00011724,2]
[396227088,1764842634516,-500.0,0.00011724,2]
[396227089,1764842634543,-500.0,0.00011724,2]
[396227090,1764842634571,-500.0,0.00011724,2]
[396227091,1764842634692,-500.0,0.00011724,2]
[396227092,1764842634721,-594.54934502,0.00011724,2]
[396227093,1764842634751,-500.0,0.00011724,2]
[396227094,1764842634780,-500.0,0.00011724,2]
[396227095,1764842634810,-500.0,0.00011724,2]
[396227096,1764842634838,-500.0,0.00011724,2]
[396227097,1764842634867,-500.0,0.00011724,2]
[396227098,1764842634895,-500.0,0.00011724,2]
[396227099,1764842634924,-500.0,0.00011724,2]
[396227100,1764842634951,-310.91130996,0.00011724,2]
[396227101,1764842635311,-1621.72080609,0.00011417,2]
[396227102,1764842635342,-189.08869004,0.00011724,2]
[396227103,1764842635373,-500.0,0.00011724,2]
[396227104,1764842635406,-500.0,0.00011724,2]
[396227105,1764842635435,-500.0,0.00011724,2]
[396227106,1764842635463,-500.0,0.00011724,2]
[396227107,1764842635491,-500.0,0.00011724,2]
[396227108,1764842635519,-500.0,0.00011724,2]
[396227109,1764842635680,-500.0,0.00011724,2]
[396227110,1764842635709,-500.0,0.00011724,2]
[396227111,1764842635737,-500.0,0.00011724,2]
[396227112,1764842635765,-500.0,0.00011724,2]
[396227113,1764842635792,-500.0,0.00011724,2]
[396227114,1764842635820,-500.0,0.00011724,2]
[396227115,1764842635848,-500.0,0.00011724,2]
[396227116,1764842635878,-452.01550743,0.00011724,2]
[396227117,1764842635905,-500.0,0.00011724,2]
[396227118,1764842635936,-500.0,0.00011724,2]
[396227119,1764842639456,-624.86814248,0.00011302,2]
[396227120,1764842639487,-500.0,0.00011724,2]
[396227121,1764842639517,-500.0,0.00011724,2]
[396227122,1764842639546,-500.0,0.00011724,2]
[396227123,1764842639574,-500.0,0.00011724,2]
[396227124,1764842639602,-500.0,0.00011724,2]
[396227125,1764842639630,-500.0,0.00011724,2]
[396227126,1764842639660,-500.0,0.00011724,2]
[396227127,1764842639688,-500.0,0.00011724,2]
[396227128,1764842639717,-250.27371504,0.00011724,2]
[396227129,1764842639859,-249.72628496,0.00011724,2]
[396227130,1764842639889,-500.0,0.00011724,2]
[396227131,1764842639920,-500.0,0.00011724,2]
[396227132,1764842639951,-500.0,0.00011724,2]
[396227133,1764842639981,-602.98767244,0.00011724,2]
[396227134,1764842640011,-500.0,0.00011724,2]
[396227135,1764842640040,-500.0,0.00011724,2]
[396227136,1764842640068,-500.0,0.00011724,2]
[396227137,1764842640102,-500.0,0.00011724,2]
[396227138,1764842640134,-500.0,0.00011724,2]
[396227139,1764842640217,-500.0,0.00011724,2]
[396227140,1764842640245,-500.0,0.00011724,2]
[396227141,1764842640274,-269.62276405,0.00011724,2]
[396227142,1764842640303,-500.0,0.00011724,2]
[396227143,1764842640332,-500.0,0.00011724,2]
[396227144,1764842640360,-500.0,0.00011724,2]
[396227145,1764842640388,-500.0,0.00011724,2]
[396227146,1764842640415,-500.0,0.00011724,2]
[396227147,1764842640444,-500.0,0.00011724,2]
[396227148,1764842640474,-500.0,0.00011724,2]
[396227149,1764842640579,-500.0,0.00011724,2]
[396227150,1764842640607,-500.0,0.00011724,2]
[396227151,1764842640636,-500.0,0.00011724,2]
[396227152,1764842640667,-500.0,0.00011724,2]
[396227153,1764842640696,-500.0,0.00011724,2]
[396227154,1764842640724,-500.0,0.00011724,2]
[396227155,1764842640753,-201.93286099,0.00011725,2]
[396227156,1764842687497,-1932.57755115,0.00011608,2]
[396227157,1764842687549,-5536.78775869,0.00011608,2]
[396227158,1764842688662,-598.06713901,0.00011608,2]
[396227159,1764842688708,-8803.87572198,0.00011725,2]
[396227160,1764842688762,-10000.01,0.00011725,2]
[396227161,1764842688897,-10000.01,0.00011725,2]
[396227162,1764842688998,-10000.01,0.00011725,2]
[396227163,1764842689132,-10000.01,0.00011725,2]
[396227164,1764842689243,-10000.01,0.00011725,2]
[396227165,1764842689351,-10000.01,0.00011725,2]
[396227166,1764842689463,-10000.01,0.00011725,2]
[396227167,1764842689594,-10000.01,0.00011725,2]
[396227168,1764842690186,-10000.01,0.00011725,2]
[396227169,1764842690199,-10000.01,0.00011725,2]
[396227170,1764842690213,-10000.01,0.00011725,2]
[396227171,1764842690236,-10000.01,0.00011725,2]
[396227172,1764842690318,-10000.01,0.00011725,2]
[396227173,1764842693584,-10000.01,0.00011725,2]
[396227174,1764842693746,-10000.01,0.00011725,2]
[396227175,1764842693858,-10000.01,0.00011725,2]
[396227176,1764842693998,-804.96522048,0.00011608,2]
[396227177,1764842694034,-8390.07955904,0.00011725,2]
[396227178,1764842694121,-10000.01,0.00011725,2]
[396227179,1764842694380,-10000.01,0.00011725,2]
[396227180,1764842694768,-10000.01,0.00011725,2]
[396227181,1764842702335,151.84,1e-05,2]
[396227182,1764842702646,151.84,1.2e-05,2]
[396227183,1764842702936,151.84,1.5e-05,2]
[396227184,1764842703284,151.84,1.7e-05,2]
[396227185,1764842703598,151.84,2e-05,2]
[396227186,1764842703927,151.84,2.2e-05,2]
[396227187,1764842704359,151.84,2.5e-05,2]
[396227188,1764842704693,151.84,2.7e-05,2]
[396227189,1764842705036,151.84,2.9e-05,2]
[396227190,1764842705670,151.84,3.2e-05,2]
[396227191,1764842705726,151.84,3.4e-05,2]
[396227192,1764842706069,151.84,3.7e-05,2]
[396227193,1764842706326,151.84,3.9e-05,2]
[396227194,1764842707260,151.84,4.2e-05,2]
[396227195,1764842707594,151.84,4.4e-05,2]
[396227196,1764842707871,151.84,4.6e-05,2]
[396227197,1764842708173,151.84,4.9e-05,2]
[396227198,1764842708477,151.84,5.1e-05,2]
[396227199,1764842708756,151.84,5.4e-05,2]
[396227200,1764842709063,151.84,5.6e-05,2]
[396227201,1764842709296,151.84,5.049e-05,2]
[396227202,1764842709443,151.84,5.9e-05,2]
[396227203,1764842709724,151.84,6.1e-05,2]
[396227204,1764842710019,151.84,6.3e-05,2]
[396227205,1764842710297,151.84,6.6e-05,2]
[396227206,1764842710570,151.84,6.8e-05,2]
[396227207,1764842711008,151.84,7.1e-05,2]
[396227208,1764842711797,151.84,7.3e-05,2]
[396227209,1764842711834,151.84,7.6e-05,2]
[396227210,1764842711865,-300.0,0.00011724,2]
[396227211,1764842711893,-300.0,0.00011724,2]
[396227212,1764842711922,-300.0,0.00011724,2]
[396227213,1764842712007,-8200.01,0.00011725,2]
[396227214,1764842712020,-10000.01,0.00011725,2]
[396227215,1764842712052,151.84,7.8e-05,2]
[396227216,1764842712066,-10000.01,0.00011725,2]
[396227217,1764842712093,-10000.01,0.00011725,2]
[396227218,1764842712191,-10000.01,0.00011725,2]
[396227219,1764842712287,151.84,8e-05,2]
[396227220,1764842712328,-10000.01,0.00011725,2]
[396227221,1764842712539,-10000.01,0.00011725,2]
[396227222,1764842712571,151.84,8.3e-05,2]
[396227223,1764842712676,-10000.01,0.00011725,2]
[396227224,1764842712822,-10000.01,0.00011725,2]
[396227225,1764842712858,151.84,8.5e-05,2]
[396227226,1764842712945,-10000.01,0.00011725,2]
[396227227,1764842713157,151.84,8.8e-05,2]
[396227228,1764842713446,151.84,9e-05,2]
[396227229,1764842714626,151.73,1e-05,2]
[396227230,1764842728081,-294.1969065,0.00011492,2]
[396227231,1764842728116,-294.1969065,0.00011608,2]
[396227232,1764842728146,-500.0,0.00011724,2]
[396227233,1764842728179,-500.0,0.00011724,2]
[396227234,1764842728210,-500.0,0.00011724,2]
[396227235,1764842728239,-500.0,0.00011724,2]
[396227236,1764842728269,-500.0,0.00011724,2]
[396227237,1764842728299,-500.0,0.00011724,2]
[396227238,1764842728327,-500.0,0.00011724,2]
[396227239,1764842728355,-417.28866673,0.00011724,2]
[396227240,1764842728383,-488.64504054,0.00011724,2]
[396227241,1764842728543,-11.35495946,0.00011724,2]
[396227242,1764842728573,-500.0,0.00011724,2]
[396227243,1764842728677,-11.35495946,0.00011725,2]
[396227244,1764842728692,-8977.30008108,0.00011725,2]
[396227245,1764842729596,-10000.01,0.00011725,2]
[396227246,1764842729907,-10000.01,0.00011725,2]
[396227247,1764842730055,-10000.01,0.00011725,2]
[396227248,1764842743060,-787.5011063,0.00010918,2]
[396227249,1764842743087,-787.5011063,0.00011028,2]
[396227250,1764842743115,-225.73391421,0.00011608,2]
[396227251,1764842743183,-6398.53774638,0.00011608,2]
[396227252,1764842743220,-150.0,0.00011666,2]
[396227253,1764842743247,-500.0,0.00011724,2]
[396227254,1764842743274,-500.0,0.00011724,2]
[396227255,1764842743302,-500.0,0.00011724,2]
[396227256,1764842743330,-500.0,0.00011724,2]
[396227257,1764842743357,-500.0,0.00011724,2]
[396227258,1764842743386,-500.0,0.00011724,2]
[396227259,1764842743416,-500.0,0.00011724,2]
[396227260,1764842743446,-500.0,0.00011724,2]
[396227261,1764842743473,-500.0,0.00011724,2]
[396227262,1764842743503,-200.01,0.00011724,2]
[396227263,1764842744054,-299.99,0.00011724,2]
[396227264,1764842744082,-500.0,0.00011724,2]
[396227265,1764842744109,-500.0,0.00011724,2]
[396227266,1764842744142,-500.0,0.00011724,2]
[396227267,1764842744172,-500.0,0.00011724,2]
[396227268,1764842744206,-200.0,0.00011724,2]
[396227269,1764842744242,-500.0,0.00011724,2]
[396227270,1764842744271,-500.0,0.00011724,2]
[396227271,1764842744301,-500.0,0.00011724,2]
[396227272,1764842744330,-500.0,0.00011724,2]
[396227273,1764842744623,-500.0,0.00011724,2]
[396227274,1764842744782,-500.0,0.00011724,2]
[396227275,1764842744811,-500.0,0.00011724,2]
[396227276,1764842744840,-500.0,0.00011724,2]
[396227277,1764842744869,-502.25780079,0.00011724,2]
[396227278,1764842744897,-500.0,0.00011724,2]
[396227279,1764842744925,-500.0,0.00011724,2]
[396227280,1764842744954,-500.0,0.00011724,2]
[396227281,1764842744985,-500.0,0.00011724,2]
[396227282,1764842745012,-500.0,0.00011724,2]
[396227283,1764842745041,-495.49439842,0.00011724,2]
[396227284,1764842745100,-4.50560158,0.00011724,2]
[396227285,1764842745129,-500.0,0.00011724,2]
[396227286,1764842745156,-500.0,0.00011724,2]
[396227287,1764842745185,-500.0,0.00011724,2]
[396227288,1764842745693,-306.78340237,0.00011725,2]
[396227289,1764842745706,-6990.99879684,0.00011725,2]
[396227290,1764842745723,-10000.01,0.00011725,2]
[396227291,1764842745741,-10000.01,0.00011725,2]
[396227292,1764842745760,-10000.01,0.00011725,2]
[396227293,1764842749342,-614.90605976,0.00011608,2]
[396227294,1764842749375,-8770.19788048,0.00011725,2]
[396227295,1764842749457,-10000.01,0.00011725,2]
[396227296,1764842749666,-10000.01,0.00011725,2]
[396227297,1764842749789,-10000.01,0.00011725,2]
[396227298,1764842749935,-10000.01,0.00011725,2]
[396227299,1764842750051,-10000.01,0.00011725,2]
[396227300,1764842750163,-10000.01,0.00011725,2]
[396227301,1764842755646,-347.22155929,0.00011417,2]
[396227302,1764842755673,-396.42781454,0.00011417,2]
[396227303,1764842755719,-8512.71125234,0.00011725,2]
[396227304,1764842756009,-10000.01,0.00011725,2]
[396227305,1764842756140,-10000.01,0.00011725,2]
[396227306,1764842761298,-291.49135065,0.00011225,5]
[396227307,1764842761331,-347.22155929,0.00011303,2]
[396227308,1764842761380,-8722.58418012,0.00011725,2]
[396227309,1764842761459,-10000.01,0.00011725,2]
[396227310,1764842761691,-10000.01,0.00011725,2]
[396227311,1764842761929,-10000.01,0.00011725,2]
[396227312,1764842762054,-10000.01,0.00011725,2]
[396227313,1764842762257,187.72,1e-05,2]
[396227314,1764842762452,-300.0,0.00011724,2]
[396227315,1764842762486,-9400.01,0.00011725,2]
[396227316,1764842762578,187.72,1.2e-05,2]
[396227317,1764842762604,-10000.01,0.00011725,2]
[396227318,1764842762861,187.72,1.3e-05,2]
[396227319,1764842763135,187.72,1.5e-05,2]
[396227320,1764842763488,187.72,1.7e-05,2]
[396227321,1764842763821,187.72,1.8e-05,2]
[396227322,1764842764282,187.72,2e-05,2]
[396227323,1764842764330,-10000.01,0.00011725,2]
[396227324,1764842764656,187.72,2.2e-05,2]
[396227325,1764842765487,187.72,2.3e-05,2]
[396227326,1764842765547,187.72,2.5e-05,2]
[396227327,1764842765675,187.72,2.7e-05,2]
[396227328,1764842765692,-10000.01,0.00011608,2]
[396227329,1764842765720,-10000.01,0.00011608,2]
[396227330,1764842765966,187.72,2.9e-05,2]
[396227331,1764842766247,169.63969826,3e-05,2]
[396227332,1764842766274,18.08030174,3e-05,2]
[396227333,1764842766580,187.72,3.2e-05,2]
[396227334,1764842766908,187.72,3.4e-05,2]
[396227335,1764842767411,187.72,3.5e-05,2]
[396227336,1764842767729,187.72,3.7e-05,2]
[396227337,1764842768059,187.72,3.9e-05,2]
[396227338,1764842768390,187.72,4e-05,2]
[396227339,1764842768674,187.72,4.2e-05,2]
[396227340,1764842768969,187.72,4.4e-05,2]
[396227341,1764842769257,187.72,4.5e-05,2]
[396227342,1764842769547,187.72,4.7e-05,2]
[396227343,1764842769869,187.72,4.9e-05,2]
[396227344,1764842770198,187.72,5e-05,2]
[396227345,1764842770564,187.72,5.2e-05,2]
[396227346,1764842770867,187.72,5.4e-05,2]
[396227347,1764842771146,187.72,5.5e-05,2]
[396227348,1764842771476,187.72,5.7e-05,2]
[396227349,1764842771782,187.72,5.9e-05,2]
[396227350,1764842772314,187.72,6.1e-05,2]
[396227351,1764842772579,187.72,6.2e-05,2]
[396227352,1764842772855,187.72,6.4e-05,2]
[396227353,1764842773126,187.72,6.6e-05,2]
[396227354,1764842773527,187.72,6.7e-05,2]
[396227355,1764842773873,187.72,6.9e-05,2]
[396227356,1764842774256,187.72,7.1e-05,2]
[396227357,1764842774556,187.72,7.2e-05,2]
[396227358,1764842774860,187.72,7.4e-05,2]
[396227359,1764842775144,187.72,7.6e-05,2]
[396227360,1764842779447,187.72,7.7e-05,2]
[396227361,1764842779731,187.72,7.9e-05,2]
[396227362,1764842780006,187.72,8.1e-05,2]
[396227363,1764842780330,187.72,8.2e-05,2]
[396227364,1764842780708,187.72,8.4e-05,2]
[396227365,1764842780984,187.72,8.6e-05,2]
[396227366,1764842781261,187.72,8.7e-05,2]
[396227367,1764842781626,187.72,8.9e-05,2]
[396227368,1764842781903,187.72,9.1e-05,2]
[396227369,1764842792739,-187.72,9.3e-05,2]
[396227370,1764842792769,-4762.95383969,0.00011377,2]
[396227371,1764842792820,-98.66232062,0.00011492,2]
[396227372,1764842792993,-4664.29151907,0.00011492,2]
[396227373,1764842793031,-671.42696186,0.00011608,2]
[396227374,1764842793162,-10000.01,0.00011608,2]
[396227375,1764842793293,-10000.01,0.00011608,2]
[396227376,1764842796033,187.72,9.207e-05,2]
[396227377,1764842822245,484.18,1e-05,2]
[396227378,1764842822597,484.18,1.2e-05,2]
[396227379,1764842822880,484.18,1.3e-05,2]
[396227380,1764842823158,484.18,1.5e-05,2]
[396227381,1764842823493,484.18,1.7e-05,2]
[396227382,1764842823778,484.18,1.8e-05,2]
[396227383,1764842824050,484.18,2e-05,2]
[396227384,1764842824323,484.18,2.2e-05,2]
[396227385,1764842824636,484.18,2.3e-05,2]
[396227386,1764842824908,484.18,2.5e-05,2]
[396227387,1764842824966,-1952.2979509,0.00011377,2]
[396227388,1764842825002,-6095.4140982,0.00011492,2]
[396227389,1764842825089,-10000.01,0.00011492,2]
[396227390,1764842825187,484.18,2.7e-05,2]
[396227391,1764842825239,-3844.6852107,0.00011492,2]
[396227392,1764842825274,-2310.6395786,0.00011608,2]
[396227393,1764842825469,484.18,2.9e-05,2]
[396227394,1764842825746,484.18,3e-05,2]
[396227395,1764842826080,484.18,3.2e-05,2]
[396227396,1764842826473,484.18,3.4e-05,2]
[396227397,1764842826739,484.18,3.5e-05,2]
[396227398,1764842827219,484.18,3.7e-05,2]
[396227399,1764842827502,484.18,3.9e-05,2]
[396227400,1764842827767,484.18,4e-05,2]
[396227401,1764842828108,484.18,4.2e-05,2]
[396227402,1764842828430,484.18,4.4e-05,2]
[396227403,1764842828731,484.18,4.5e-05,2]
[396227404,1764842829026,484.18,4.7e-05,2]
[396227405,1764842829358,484.18,4.9e-05,2]
[396227406,1764842829668,484.18,5e-05,2]
[396227407,1764842829961,484.18,5.2e-05,2]
[396227408,1764842830264,484.18,5.4e-05,2]
[396227409,1764842830540,484.18,5.5e-05,2]
[396227410,1764842830839,484.18,5.7e-05,2]
[396227411,1764842831128,484.18,5.9e-05,2]
[396227412,1764842831411,484.18,6.1e-05,2]
[396227413,1764842831695,484.18,6.2e-05,2]
[396227414,1764842832756,484.18,6.4e-05,2]
[396227415,1764842832790,484.18,6.6e-05,2]
[396227416,1764842832868,484.18,6.7e-05,2]
[396227417,1764842834802,484.18,6.9e-05,2]
[396227418,1764842835081,484.18,7.1e-05,2]
[396227419,1764842835369,484.18,7.2e-05,2]
[396227420,1764842835667,484.18,7.4e-05,2]
[396227421,1764842835974,484.18,7.6e-05,2]
[396227422,1764842836291,484.18,7.7e-05,2]
[396227423,1764842836576,484.18,7.9e-05,2]
[396227424,1764842836967,484.18,8.1e-05,2]
[396227425,1764842837301,484.18,8.2e-05,2]
[396227426,1764842837721,484.18,8.4e-05,2]
[396227427,1764842837995,484.18,8.6e-05,2]
[396227428,1764842838266,484.18,8.7e-05,2]
[396227429,1764842838548,484.18,8.9e-05,2]
[396227430,1764842838819,484.18,9.1e-05,2]
[396227431,1764842840956,-484.18,9.3e-05,2]
[396227432,1764842840996,-9031.65,0.00011492,2]
[396227433,1764842841106,-1402.1902697,0.00011492,2]
[396227434,1764842841129,-7195.6294606,0.00011492,2]
[396227435,1764842841239,-10000.01,0.00011608,2]
[396227436,1764842853284,-1024.27332615,0.00011263,2]
[396227437,1764842853312,-1024.27332615,0.00011377,2]
[396227438,1764842853632,-5902.9166954,0.00011608,2]
[396227439,1764842859196,-1726.5430349,0.00011608,2]
[396227440,1764842859225,-500.0,0.00011723,2]
[396227441,1764842859254,-500.0,0.00011723,2]
[396227442,1764842859282,-500.0,0.00011723,2]
[396227443,1764842859312,-500.0,0.00011723,2]
[396227444,1764842859339,-500.0,0.00011723,2]
[396227445,1764842859368,-181.8948833,0.00011723,2]
[396227446,1764842859397,-500.0,0.00011723,2]
[396227447,1764842859498,-455.88751916,0.00011723,2]
[396227448,1764842859525,-500.0,0.00011723,2]
[396227449,1764842859552,-500.0,0.00011723,2]
[396227450,1764842859580,-500.0,0.00011723,2]
[396227451,1764842859606,-491.82980118,0.00011723,2]
[396227452,1764842859633,-500.0,0.00011723,2]
[396227453,1764842859660,-566.87653981,0.00011723,2]
[396227454,1764842859688,-500.0,0.00011723,2]
[396227455,1764842859715,-500.0,0.00011723,2]
[396227456,1764842859743,-206.8263136,0.00011723,2]
[396227457,1764842859772,-57.1696525,0.00011723,2]
[396227458,1764842859866,-442.8303475,0.00011723,2]
[396227459,1764842859896,-500.0,0.00011723,2]
[396227460,1764842859926,-252.44810004,0.00011723,2]
[396227461,1764842859954,-500.0,0.00011723,2]
[396227462,1764842859982,-500.0,0.00011723,2]
[396227463,1764842860013,-500.0,0.00011723,2]
[396227464,1764842860043,-500.0,0.00011723,2]
[396227465,1764842860071,-500.0,0.00011723,2]
[396227466,1764842860101,-500.0,0.00011723,2]